[Event "CCT Airthings Masters Play-In 2023"]
[Site "Online"]
[Date "2023.02.03"]
[Round "4"]
[White "shimastream"]
[Black "GasconJR"]
[Result "0-1"]
[ECO "B53"]
[WhiteElo "2545"]
[BlackElo "2377"]
[Annotator "TA"]
[PlyCount "108"]
[EventDate "2023.02.03"]
[EventType "swiss"]
[EventCountry "NET"]
[SourceTitle "playchess.com"]
[Source "ChessBase"]
[SourceQuality "1"]
[TimeControl "600+2"]

{[%evp 9,108,13,16,8,11,12,8,7,15,29,37,0,0,0,0,-14,-12,-13,0,0,2,-54,-57,-58,-45,-44,-37,-60,-60,-61,-54,-61,-55,-65,-61,-90,-90,-90,-90,-90,-90,-121,-90,-100,-101,-101,-101,-115,-101,-202,-188,-193,-172,-316,-101,-101,-101,-156,-86,-97,-87,-95,0,0,0,-337,-343,-324,-14,-21,0,-343,-337,-325,-320,-287,-288,-442,-436,-594,-577,-595,-587,-630,-631,-497,-183,-280,-264,-289,0,-1729,-1533,-29987,-29988,-29992,-29993,-29998,-29989,-29989,-29988]} 1. e4 {[%emt 0:00:03]} c5 {[%emt 0:00:06]} 2. Nf3 {[%emt 0:00:01]} d6 {[%emt 0:00:01]} 3. d4 {[%emt 0:00:02]} cxd4 {[%emt 0:00:00]} 4. Qxd4 {[%emt 0:00:00]} Nc6 {[%emt 0:00:04]} 5. Bb5 {[%emt 0:00:02]} a6 {[%emt 0:00:00]} 6. Bxc6+ {[%emt 0:00:02] B53: Sicilian: 2...d6: Lines with Qxd4.} bxc6 {[%emt 0:00:00] Black is weak on the dark squares} 7. O-O {[%emt 0:00:02]} e5 {[%emt 0:00:03]} 8. Qa4 {[%emt 0:00:01] The position is equal. outshines the older 8.Qd3.} Bd7 {[%emt 0:00:06]} 9. c4 {[%emt 0:00:01][%cal Oc4c5]} c5 {[%emt 0:00:09]} 10. Qc2 {[%emt 0:00:04]} Ne7 {[%emt 0:00:01]} 11. Nc3 {[%emt 0:00:42]} Nc6 {[%emt 0:00:11]} 12. Nd5 {[%emt 0:00:03] [#]} Be7 $146 {[%emt 0:00:15]} ({Predecessor:} 12... Nd4 13. Nxd4 cxd4 14. Qd3 Be6 15. f4 Bxd5 16. exd5 Be7 17. fxe5 dxe5 18. Qf5 f6 {1-0 Bagatsch,T (1984)-Reichel,R (1619) Frankfurt-chA 2012 (4)}) 13. Bd2 {[%emt 0:01:00]} O-O {[%emt 0:00:11]} 14. b4 {[%emt 0:01:26]} cxb4 {[%emt 0:00:14]} 15. Nxb4 {[%emt 0:00:01]} (15. a3 $11) 15... Nxb4 $15 {[%emt 0:00:46]} 16. Bxb4 {[%emt 0:00:02]} Bg4 {[%emt 0:01:42]} 17. Nd2 {[%emt 0:00:05]} Qc7 {[%emt 0:00:05]} 18. Qd3 {[%emt 0:00:10]} Rfc8 {[%emt 0:00:07]} 19. Rac1 {[%emt 0:00:09]} Rab8 {[%emt 0:00:19][%cal Ba8b8,Bb8b6,Bb6c6][%mdl 32]} 20. Ba3 {[%emt 0:00:05]} Rb6 {[%emt 0:00:09]} 21. Rc2 {[%emt 0:00:04]} Rc6 {[%emt 0:00:06]} 22. f3 {[%emt 0:02:24]} Be6 {[%emt 0:00:03]} 23. Rd1 {[%emt 0:00:00]} Bg5 {[%emt 0:00:51]} (23... Bxc4 24. Nxc4 Rxc4 25. Rxc4 Qxc4 26. Qxc4 Rxc4 27. Bxd6 $11) 24. Kh1 {[%emt 0:00:10]} h5 {[%emt 0:00:06][%cal Bh7h5,Bh5h4][%mdl 32]} (24... Bxc4 25. Nxc4 Rxc4 26. Bxd6 $14) 25. h3 {[%emt 0:00:02]} h4 {[%emt 0:00:07] Black is more active.} (25... Bxc4 26. Nxc4 Rxc4 27. Bxd6 $14) 26. Bb4 {[%emt 0:00:28]} a5 {[%emt 0:00:06]} (26... Bxc4 $6 27. Nxc4 Rxc4 28. Bxd6 Rxc2 29. Bxc7 R2xc7 30. Kg1 $11 (30. Qxa6 $2 Rc1 $19)) 27. Ba3 {[%emt 0:00:01]} g6 {[%emt 0:00:02]} (27... Bxc4 $6 28. Nxc4 Rxc4 29. Bxd6 Rxc2 30. Bxc7 R2xc7 31. Rg1 $11) 28. Rb1 {[%emt 0:00:10]} Bf4 {[%emt 0:01:00]} (28... Bxc4 29. Nxc4 Bf4 30. Nxd6 (30. Bxd6 Rxd6 31. Nxd6 Qxc2 $17) (30. g3 hxg3 31. Rbb2 Rxc4 $17) 30... Rxc2 31. Nxc8 Qxc8 32. Rb8 Qxb8 33. Qxc2 $15) 29. Rd1 {[%emt 0:00:32]} (29. Qf1 $17 {was worth a try.}) 29... Bxc4 $19 {[%emt 0:00:05]} 30. Nxc4 {[%emt 0:00:04]} Rxc4 {[%emt 0:00:01]} 31. Bxd6 {[%emt 0:00:20]} (31. Rxc4 $142 Qxc4 32. Qxc4 Rxc4 33. Bxd6) 31... Qc6 $2 {[%emt 0:00:36]} (31... Rxc2 $19 {and Black stays clearly on top.} 32. Bxc7 R8xc7 33. Qd8+ Kg7 34. Qxh4 Rxa2) 32. Rxc4 $17 {[%emt 0:00:02]} Qxc4 {[%emt 0:00:00]} 33. Qd5 {[%emt 0:00:02] [#]} (33. Qxc4 $142 Rxc4 34. Be7) 33... Qe2 {[%emt 0:00:57]} (33... Qc2 $142 $1 {aiming for ...Rd8.} 34. Rg1 Rd8) 34. Rg1 {[%emt 0:01:20]} Rd8 {[%emt 0:01:05]} 35. Qc5 {[%emt 0:01:05] [#] Dodges Qf2} Rxd6 {[%emt 0:01:19]} 36. Qxd6 {[%emt 0:00:03][%mdl 4096] Endgame KQR-KQB} Qf2 $1 {[%emt 0:00:00]} 37. Rd1 $2 {[%emt 0:00:25][%mdl 8192]} (37. Rb1 $1 $11 Qg3 38. Kg1 Qh2+ 39. Kf2 Bg3+ {[%mdl 64] Deflection} 40. Ke3) 37... Qg3 $19 {[%emt 0:00:02][%csl Gf4][%cal Rg3h2]} 38. Kg1 {[%emt 0:00:00]} Be3+ $40 {[%emt 0:00:01][%mdl 128] Black is up to no good.} (38... Qh2+ $19 39. Kf2 (39. Kf1 $2 Qh1+ 40. Kf2 Bg3+ {[%mdl 64] Deflection} 41. Ke3 Qxg2 $19) 39... Bg3+ {[%mdl 64] Deflection} 40. Ke3 Qxg2) 39. Kh1 $11 {[%emt 0:00:01] And now Qf6 would win.} Bf4 $2 {[%emt 0:00:01][%mdl 8192]} (39... Kg7 $11 40. f4 Bxf4) 40. Kg1 $1 $19 {[%emt 0:00:00] Strongly threatening Qb6.} Qh2+ {[%emt 0:00:08]} 41. Kf2 {[%emt 0:00:02]} (41. Kf1 Qh1+ 42. Kf2 Bg3+ 43. Ke3 Bf4+ 44. Kf2 Bg3+ 45. Ke3 Qxg2 $19) 41... Bg3+ {[%emt 0:00:12][%mdl 64] Deflection} 42. Ke3 {[%emt 0:00:01] Qb8+ would be deadly.} Qxg2 {[%emt 0:00:01]} 43. Qd8+ {[%emt 0:00:08]} (43. Kd3 $142) 43... Kg7 {[%emt 0:00:01]} 44. Kd3 {[%emt 0:00:03]} Qxf3+ {[%emt 0:00:02]} 45. Kc4 {[%emt 0:00:01]} Qxe4+ {[%emt 0:00:01]} 46. Kb5 {[%emt 0:00:01]} Qb4+ {[%emt 0:00:02]} 47. Ka6 {[%emt 0:00:01]} Bf2 $2 {[%emt 0:00:06]} (47... Qc4+ 48. Kxa5 Be1+ {[%mdl 64] Decoy} 49. Rxe1 Qc3+ 50. Ka4 Qxe1) 48. Rd6 {[%emt 0:00:01]} (48. Rc1 $142 Qe4 49. Rc8 Qe2+ 50. Kxa5 Qxa2+ 51. Kb4 Qb2+ 52. Ka5 Qa2+ 53. Kb5 Qb3+ 54. Ka5 Be1+ 55. Ka6 Qe6+ 56. Kb5) 48... Qf4 {[%emt 0:00:05] ...e4 is the strong threat.} 49. Qxa5 {[%emt 0:00:02]} e4 $2 {[%emt 0:00:01]} ({Better is} 49... g5 $19 {Hoping for ...g4.} 50. Qc3 Bd4) 50. Qd5 $2 {[%emt 0:00:02][%mdl 8192]} (50. Qc3+ $11 f6 51. Qc7+ Kh6 52. Qe7) 50... e3 {[%emt 0:00:02][%cal Be4e3,Be3e2][%mdl 32] ( -> ...e2)} ({Stronger than} 50... Qe3 51. Kb5 $17) 51. Rd8 {[%emt 0:00:06]} e2 {[%emt 0:00:03] Black mates.} 52. Qa8 {[%emt 0:00:00]} Qc4+ {[%emt 0:00:03]} 53. Ka5 {[%emt 0:00:01]} Qxa2+ {[%emt 0:00:01]} 54. Kb5 {[%emt 0:00:02]} Qxa8 {[%emt 0:00:00] Excellently played by GasconJR!   Weighted Error Value: White=0.58/Black=0.28 (precise)} ({Inferior is} 54... e1=Q 55. Qxa2 (55. Rg8+ $2 Kh6 $19) 55... Qf1+ 56. Kc6 $15) 0-1

[Event "CCT Airthings Masters Play-In 2023"]
[Site "Online"]
[Date "2023.02.03"]
[Round "4"]
[White "gmjlh"]
[Black "Parhamov"]
[Result "0-1"]
[ECO "E11"]
[WhiteElo "2544"]
[BlackElo "2645"]
[Annotator "TA"]
[PlyCount "88"]
[EventDate "2023.02.03"]
[EventType "swiss"]
[EventCountry "NET"]
[SourceTitle "playchess.com"]
[Source "ChessBase"]
[SourceQuality "1"]
[TimeControl "600+2"]

{[%evp 17,88,5,14,-17,-8,-17,-11,-34,0,-23,-30,-23,-25,-22,-44,-7,-11,-38,-40,-51,-36,-44,-44,-50,-45,-38,-39,-52,-58,-79,-93,-75,-73,-85,-64,-71,-72,-95,-96,-263,-265,-259,-264,-269,-271,-271,-272,-539,-302,-343,-253,-335,-335,-323,-259,-275,0,-329,-315,-314,-299,-346,-348,-376,-361,-620,-618,-569,-536,-1075,-1053,-29987,-29988]} 1. d4 {[%emt 0:00:04]} Nf6 {[%emt 0:00:06]} 2. c4 {[%emt 0:00:02]} e6 {[%emt 0:00:02]} 3. Nf3 {[%emt 0:00:06]} Bb4+ {[%emt 0:00:01]} 4. Bd2 {[%emt 0:00:02]} a5 {[%emt 0:00:01]} 5. g3 {[%emt 0:00:06]} O-O {[%emt 0:00:07]} 6. Bg2 {[%emt 0:00:01]} d5 {[%emt 0:00:01]} 7. a3 {[%emt 0:00:26]} Be7 {[%emt 0:00:07]} 8. Qc2 {[%emt 0:00:13]} c6 {[%emt 0:00:08]} 9. O-O {[%emt 0:00:05]} Nbd7 {[%emt 0:00:05]} 10. b3 {[%emt 0:00:45] E11: Bogo-Indian.} b6 {[%emt 0:00:02]} 11. Bg5 {[%emt 0:00:26]} Ba6 {[%emt 0:00:04]} 12. Nbd2 {[%emt 0:00:02] The position is equal.} Rc8 {[%emt 0:00:02] [#]} 13. Rfd1 $146 {[%emt 0:00:42]} (13. e4 $5 {[%cal Re4e5]}) ({Predecessor:} 13. Rfe1 c5 14. cxd5 Nxd5 15. Bxe7 Qxe7 16. Qb2 cxd4 17. Nxd4 Qf6 18. Ne4 Qe5 19. Rad1 {0-1 Arunnuntapanich,T (2064)-Jumabayev,R (2654) Asia Nations online Cup rapid 2020 (9.4)}) 13... c5 {[%emt 0:00:14]} 14. dxc5 {[%emt 0:00:37]} Bxc5 {[%emt 0:00:01]} 15. Qb2 {[%emt 0:00:37]} h6 {[%emt 0:00:01]} 16. Bxf6 {[%emt 0:00:01]} Qxf6 {[%emt 0:00:01]} 17. Qxf6 {[%emt 0:00:01]} (17. Qb1 {looks sharper.} Ne5 18. b4 Nxf3+ 19. Nxf3 Be7 20. b5) 17... Nxf6 {[%emt 0:00:01][%cal Bd7f6,Bf6d5,Bd5c3][%mdl 32]} (17... gxf6 18. b4 Bd6 19. cxd5 Bxe2 20. dxe6 $14 (20. Re1 Bxf3 21. Nxf3 exd5 $14)) 18. b4 {[%emt 0:00:01]} Be7 {[%emt 0:00:07]} (18... axb4 19. axb4 Bxc4 20. Nxc4 (20. bxc5 Bxe2 21. Rdb1 bxc5 $11) 20... Bxf2+ 21. Kxf2 $16) 19. b5 {[%emt 0:00:31]} Bb7 {[%emt 0:00:01]} 20. Ne5 {[%emt 0:00:22]} Bd6 {[%emt 0:00:01]} 21. Nd3 {[%emt 0:00:04]} Rc7 {[%emt 0:00:06]} 22. cxd5 {[%emt 0:00:05]} Nxd5 {[%emt 0:00:01]} ({But not} 22... Bxd5 23. e4 $16) 23. a4 {[%emt 0:00:34]} Nc3 {[%emt 0:00:24][%csl LRd1,LRe2]} 24. Re1 {[%emt 0:00:02]} Bxg2 {[%emt 0:00:02]} 25. Kxg2 {[%emt 0:00:02]} e5 {[%emt 0:00:01][%cal Be6e5,Be5e4][%mdl 32]} 26. Nb2 {[%emt 0:01:14]} Rfc8 {[%emt 0:00:04] Black has more active pieces. White is weak on the dark squares} 27. e3 {[%emt 0:00:19]} e4 {[%emt 0:00:24]} 28. Rac1 $2 {[%emt 0:00:31]} (28. g4 $17) 28... Ba3 $19 {[%emt 0:00:08]} 29. Rc2 {[%emt 0:02:17]} Bxb2 {[%emt 0:00:02][%mdl 64] [#] Remove Defender} 30. Rxb2 {[%emt 0:00:00]} Nxa4 {[%emt 0:00:00]} 31. Rb3 {[%emt 0:00:08]} f5 {[%emt 0:00:03][%cal Bf7f5,Bf5g4][%mdl 32] ...Rc2 is the strong threat.} 32. g4 $2 {[%emt 0:00:03]} (32. Ra1 {was worth a try.} Nc3 33. h3) 32... Nc5 {[%emt 0:00:05]} (32... fxg4 $2 {is the wrong capture.} 33. Nxe4 Re8 34. Nd6 $19) 33. Ra3 {[%emt 0:00:01]} fxg4 {[%emt 0:00:01]} 34. Rb1 {[%emt 0:00:05]} Rd8 {[%emt 0:00:22]} 35. Nc4 {[%emt 0:00:01]} Nd7 {[%emt 0:00:01]} 36. Ra4 {[%emt 0:00:04]} Nc5 $2 {[%emt 0:00:26]} ({Black should try} 36... Rf8 $19 {Hoping for ...Nc5.} 37. Rd1 Rf6) 37. Ra2 $2 {[%emt 0:00:01][%mdl 8192]} (37. Ra3 $1 $11 {and White has nothing to worry.}) 37... Rb7 {[%emt 0:00:02]} 38. Rc2 {[%emt 0:00:05][%cal Oc4b6]} Rd5 {[%emt 0:00:02]} 39. Kg3 {[%emt 0:00:03]} h5 {[%emt 0:00:01]} 40. Kh4 {[%emt 0:00:22]} Kh7 {[%emt 0:00:42]} 41. Na3 $2 {[%emt 0:00:01]} (41. Nd2) 41... Rf7 {[%emt 0:00:04] [#] ( -> ...Rf3)} 42. Kg3 {[%emt 0:00:01]} Nd3 {[%emt 0:00:06]} 43. Nc4 {[%emt 0:00:01]} Rc5 {[%emt 0:00:02]} 44. Nd6 {[%emt 0:00:09]} Rf3+ {[%emt 0:00:01] Weighted Error Value: White=0.81/Black=0.24 (precise)} 0-1

[Event "CCT Airthings Masters Play-In 2023"]
[Site "Online"]
[Date "2023.02.03"]
[Round "4"]
[White "Sanan_Sjugirov"]
[Black "Fighterman91"]
[Result "1-0"]
[ECO "B30"]
[WhiteElo "2535"]
[BlackElo "2372"]
[Annotator "NA"]
[PlyCount "65"]
[EventDate "2023.02.03"]
[EventType "swiss"]
[EventCountry "NET"]
[SourceTitle "playchess.com"]
[Source "ChessBase"]
[SourceQuality "1"]
[TimeControl "600+2"]

1. e4 {[%emt 0:00:03]} c5 {[%emt 0:00:07]} 2. Nf3 {[%emt 0:00:01]} Nc6 {[%emt 0:00:01]} 3. Bb5 {[%emt 0:00:01]} e6 {[%emt 0:00:00]} 4. c4 {[%emt 0:00:14]} Nge7 {[%emt 0:00:15]} 5. Nc3 {[%emt 0:00:02]} Nd4 {[%emt 0:00:21]} 6. Nxd4 {[%emt 0:00:09]} cxd4 {[%emt 0:00:00]} 7. Ne2 {[%emt 0:00:00]} Nc6 {[%emt 0:00:02]} 8. O-O {[%emt 0:00:08]} Bc5 {[%emt 0:00:34]} 9. d3 {[%emt 0:00:03]} O-O {[%emt 0:00:04]} 10. Ng3 {[%emt 0:00:20]} d6 {[%emt 0:00:54]} 11. a3 {[%emt 0:00:10]} a6 {[%emt 0:00:11]} 12. Ba4 {[%emt 0:00:02]} Bd7 {[%emt 0:00:28]} 13. f4 {[%emt 0:00:03]} Rb8 {[%emt 0:00:49]} 14. b4 {[%emt 0:00:32]} Ba7 {[%emt 0:00:03]} 15. Bxc6 {[%emt 0:00:01]} bxc6 {[%emt 0:00:03]} 16. f5 {[%emt 0:00:01]} exf5 {[%emt 0:00:01]} 17. exf5 {[%emt 0:00:10]} f6 {[%emt 0:00:33]} 18. Bf4 {[%emt 0:00:02]} d5 {[%emt 0:01:42]} 19. Bxb8 {[%emt 0:00:51]} Bxb8 {[%emt 0:00:00]} 20. c5 {[%emt 0:00:15]} Re8 {[%emt 0:00:09]} 21. Qg4 {[%emt 0:00:10]} Re3 {[%emt 0:00:16]} 22. Qxd4 {[%emt 0:00:23]} Qe7 {[%emt 0:00:00]} 23. Rad1 {[%emt 0:00:12]} Be8 {[%emt 0:00:51]} 24. Kf2 {[%emt 0:00:53]} Re5 {[%emt 0:00:08]} 25. Qg4 {[%emt 0:00:14]} g5 {[%emt 0:02:43]} 26. Rfe1 {[%emt 0:00:31]} h5 {[%emt 0:00:32]} 27. Nxh5 {[%emt 0:00:06]} Bxh5 {[%emt 0:00:04]} 28. Qxh5 {[%emt 0:00:01]} Rxf5+ {[%emt 0:00:00]} 29. Kg1 {[%emt 0:00:01]} Re5 {[%emt 0:00:01]} 30. Qg6+ {[%emt 0:00:15]} Kf8 {[%emt 0:00:01]} 31. Rf1 {[%emt 0:00:17]} Re6 {[%emt 0:00:01]} 32. Qxg5 {[%emt 0:00:04]} Qf7 {[%emt 0:00:05]} 33. Qh4 {[%emt 0:00:09]} 1-0

[Event "CCT Airthings Masters Play-In 2023"]
[Site "Online"]
[Date "2023.02.03"]
[Round "4"]
[White "aquarium76"]
[Black "Sadhwani, Raunak"]
[Result "1-0"]
[ECO "A21"]
[WhiteElo "2535"]
[BlackElo "2627"]
[Annotator "NA"]
[PlyCount "47"]
[EventDate "2023.02.03"]
[EventType "swiss"]
[EventCountry "NET"]
[SourceTitle "playchess.com"]
[Source "ChessBase"]
[SourceQuality "1"]
[TimeControl "600+2"]

1. c4 {[%emt 0:00:05]} e5 {[%emt 0:00:05]} 2. Nc3 {[%emt 0:00:02]} d6 {[%emt 0:00:02]} 3. e3 {[%emt 0:00:02]} f5 {[%emt 0:00:04]} 4. d4 {[%emt 0:00:01]} Nf6 {[%emt 0:00:02]} 5. Be2 {[%emt 0:00:02]} Be7 {[%emt 0:00:03]} 6. Nh3 {[%emt 0:00:26]} O-O {[%emt 0:00:08]} 7. b3 {[%emt 0:00:07]} c6 {[%emt 0:00:03]} 8. O-O {[%emt 0:00:04]} Na6 {[%emt 0:00:18]} 9. f3 {[%emt 0:00:18]} Qc7 {[%emt 0:00:13]} 10. Nf2 {[%emt 0:00:04]} Be6 {[%emt 0:00:05]} 11. Bb2 {[%emt 0:00:08]} Kh8 {[%emt 0:00:03]} 12. Kh1 {[%emt 0:00:38]} Rad8 {[%emt 0:00:06]} 13. Qd2 {[%emt 0:00:10]} Nh5 {[%emt 0:01:15]} 14. g4 {[%emt 0:01:38]} fxg4 {[%emt 0:00:18]} 15. fxg4 {[%emt 0:00:01]} exd4 {[%emt 0:00:01]} 16. exd4 {[%emt 0:00:43]} Nf4 {[%emt 0:00:02]} 17. d5 {[%emt 0:00:03]} Bg8 {[%emt 0:00:31]} 18. Nfe4 {[%emt 0:00:10]} Nxe2 {[%emt 0:01:02]} 19. Nxe2 {[%emt 0:00:21]} Bh4 {[%emt 0:00:18]} 20. N2g3 {[%emt 0:03:03]} cxd5 {[%emt 0:00:50]} 21. Nh5 {[%emt 0:01:12]} dxe4 {[%emt 0:00:45]} 22. Qh6 {[%emt 0:00:39]} Rxf1+ {[%emt 0:00:28]} 23. Rxf1 {[%emt 0:00:02]} Rd7 {[%emt 0:00:00]} 24. Nf4 {[%emt 0:00:18]} 1-0

[Event "CCT Airthings Masters Play-In 2023"]
[Site "Online"]
[Date "2023.02.03"]
[Round "4"]
[White "dropstoneDP"]
[Black "sergoy"]
[Result "1/2-1/2"]
[ECO "B55"]
[WhiteElo "2533"]
[BlackElo "2398"]
[Annotator "TA"]
[PlyCount "148"]
[EventDate "2023.02.03"]
[EventType "swiss"]
[EventCountry "NET"]
[SourceTitle "playchess.com"]
[Source "ChessBase"]
[SourceQuality "1"]
[TimeControl "600+2"]

{[%evp 12,148,2,2,14,8,4,9,15,-13,-13,-17,10,0,0,0,6,3,0,6,27,28,27,0,0,0,68,26,37,0,0,0,0,0,0,-106,-100,-96,-93,-94,-87,-91,-82,-90,-76,-104,-40,-118,-118,-119,-118,-118,-118,-119,-118,-120,-120,-135,-128,-134,-128,-133,-126,-133,-99,-112,-75,-77,-77,-77,-77,-77,-77,-75,-81,-154,-70,-83,0,0,0,0,0,0,0,0,0,0,0,0,0,0,0,0,0,0,0,0,0,0,0,0,0,0,0,0,0,0,0,0,0,0,0,0,0,0,0,0,0,0,0,0,0,0,0,0,0,0,0,0,0,0,0,0,0,0,0,0,0]} 1. e4 {[%emt 0:00:03]} c5 {[%emt 0:00:05]} 2. Nf3 {[%emt 0:00:01]} d6 {[%emt 0:00:00]} 3. d4 {[%emt 0:00:01]} cxd4 {[%emt 0:00:00]} 4. Nxd4 {[%emt 0:00:00]} Nf6 {[%emt 0:00:01]} 5. Bd3 {[%emt 0:00:01]} Nc6 {[%emt 0:00:29]} 6. Nxc6 {[%emt 0:00:04]} bxc6 {[%emt 0:00:01]} 7. O-O {[%emt 0:00:01]} g6 {[%emt 0:00:03] B55: Sicilian: 2...d6 3 d4 cxd4 4 Nxd4 Nf6 5 f3.} 8. b3 $1 {[%emt 0:00:00] 8.b3 scores better than 8.c4.} Bg7 {[%emt 0:00:01][%cal Of6e4]} 9. Bb2 {[%emt 0:00:01]} O-O {[%emt 0:00:02]} 10. Nd2 {[%emt 0:00:02]} a5 {[%emt 0:00:38]} 11. a4 {[%emt 0:00:03]} d5 {[%emt 0:00:06] [#]} (11... Nh5 $5 {[%cal Rg7b2]} 12. Bxg7 Kxg7 $11) 12. Qc1 $146 {[%emt 0:00:10]} ({Predecessor:} 12. Qe2 e5 13. Bxe5 Re8 14. Bxf6 Qxf6 15. Rad1 h5 16. Qf3 Qxf3 17. gxf3 Bh6 18. Rfe1 {½-½ Radulov,I-Bobotsov,M BUL-ch16 Sofia 1962 (9)}) 12... Re8 {[%emt 0:00:11]} 13. Re1 {[%emt 0:00:05]} Qb6 {[%emt 0:00:49]} 14. exd5 {[%emt 0:00:13]} cxd5 {[%emt 0:00:58]} 15. Bb5 {[%emt 0:00:02] Wards off Ba6} Ng4 {[%emt 0:01:23]} 16. Re2 {[%emt 0:01:54]} ({Much worse is} 16. Bxe8 Bxb2 17. Qxb2 Qxf2+ 18. Kh1 Qxd2 $11) 16... Ba6 {[%emt 0:00:50]} 17. Bxg7 {[%emt 0:00:05] Bb2 would be deadly.} (17. c4 $5 {[%cal Rb5e8]}) 17... Bxb5 {[%emt 0:00:06]} 18. axb5 {[%emt 0:00:00]} Kxg7 {[%emt 0:00:01]} ({Better is} 18... Qxb5 $11 19. c4 Qb8) 19. Qb2+ {[%emt 0:00:08]} f6 {[%emt 0:00:32]} 20. Rae1 {[%emt 0:00:19]} e5 $40 {[%emt 0:00:01][%cal Oe5e4][%mdl 128] Black is up to no good.} 21. h3 {[%emt 0:00:06]} Nh6 {[%emt 0:00:01]} 22. c4 {[%emt 0:00:01]} Nf5 {[%emt 0:00:04]} 23. cxd5 {[%emt 0:00:13]} (23. Rc1 $11 {keeps the balance.}) 23... Qxb5 $17 {[%emt 0:00:05]} 24. Nf3 {[%emt 0:01:18]} Qxd5 {[%emt 0:00:16]} 25. Rd2 {[%emt 0:00:01]} Qc6 {[%emt 0:00:09]} 26. Rc1 {[%emt 0:00:10]} Qb7 {[%emt 0:00:06]} 27. Qa3 {[%emt 0:00:30]} Re7 {[%emt 0:00:30]} 28. Rcd1 {[%emt 0:00:17]} Qb4 {[%emt 0:00:18]} (28... h5 $17 29. Qa4 Rb8 30. Qxa5 Qxb3) 29. Qa2 {[%emt 0:00:32]} (29. Qxb4 $15 axb4 30. g4) 29... Rb8 {[%emt 0:00:23][%cal Ba8b8,Bb8b7,Bb7b3][%mdl 32]} 30. Rd7 {[%emt 0:00:28]} Rb7 {[%emt 0:00:20]} 31. R7d5 {[%emt 0:01:01]} Qxb3 {[%emt 0:00:11]} 32. Qxb3 {[%emt 0:00:25]} Rxb3 {[%emt 0:00:00]} 33. Rxa5 {[%emt 0:00:00]} h5 {[%emt 0:00:23]} 34. Rad5 {[%emt 0:00:05]} g5 {[%emt 0:00:05]} 35. Nd2 {[%emt 0:00:02]} Rb4 {[%emt 0:00:02]} 36. Nf1 {[%emt 0:00:07]} Kg6 {[%emt 0:00:02]} 37. Rd8 {[%emt 0:00:04]} Rd4 {[%emt 0:00:31]} 38. g4 {[%emt 0:00:06]} hxg4 {[%emt 0:00:08]} 39. R1xd4 {[%emt 0:00:01][%mdl 64] [#] Remove Defender} exd4 {[%emt 0:00:38]} 40. hxg4 {[%emt 0:00:01][%mdl 4096] Endgame KRN-KRN} Nh4 {[%emt 0:00:00] ...Re1 is the strong threat.} 41. Ng3 {[%emt 0:00:16][%cal Og1f1]} Re1+ {[%emt 0:00:06]} 42. Kh2 {[%emt 0:00:02][%cal Oh2h3]} Rd1 {[%emt 0:00:02]} 43. Rd6 {[%emt 0:00:59] [#]} (43. Ne4 $142) 43... Nf3+ {[%emt 0:00:06]} (43... Rd2 $1 $17 {[%cal Rd2f2]} 44. Ne4 Re2 45. Rxf6+ Kg7) 44. Kh3 {[%emt 0:00:03]} d3 {[%emt 0:00:35]} ({Black should try} 44... Ne5 $17 45. Ne4 Rd3+ 46. Ng3 Rf3 47. Rxd4 Rxf2) 45. Ne4 $11 {[%emt 0:00:02] The position is equal.} d2 {[%emt 0:00:00]} 46. Rxf6+ {[%emt 0:00:23]} (46. Nxf6 $2 {loses.} Rh1+ 47. Kg2 d1=Q $19) 46... Kg7 {[%emt 0:00:01] ( -> ...Rh1+)} 47. Rd6 $1 {[%emt 0:00:00]} Rh1+ {[%emt 0:00:12]} 48. Kg2 $1 {[%emt 0:00:01]} d1=Q {[%emt 0:00:00]} 49. Rxd1 {[%emt 0:00:01]} Rxd1 {[%emt 0:00:00]} 50. Kxf3 {[%emt 0:00:01] KR-KN} Kg6 {[%emt 0:00:01]} 51. Ke2 {[%emt 0:00:00]} Rd8 {[%emt 0:00:02]} 52. f3 {[%emt 0:00:01]} Ra8 {[%emt 0:00:01]} 53. Ke3 {[%emt 0:00:00]} Ra5 {[%emt 0:00:01]} 54. Kf2 {[%emt 0:00:01]} Kf7 {[%emt 0:00:01]} 55. Kg3 {[%emt 0:00:01]} Ke6 {[%emt 0:00:01]} 56. Nd2 {[%emt 0:00:01]} Kd5 {[%emt 0:00:08]} 57. Kf2 {[%emt 0:00:01]} Ra2 {[%emt 0:00:03]} 58. Ke3 {[%emt 0:00:00]} Ra3+ {[%emt 0:00:00]} 59. Kf2 {[%emt 0:00:01]} Kd4 {[%emt 0:00:01] And now ...Ra2 would win.} 60. Ne4 {[%emt 0:00:11]} Ra5 {[%emt 0:00:03]} 61. Nd6 {[%emt 0:00:08]} Kd5 {[%emt 0:00:04]} 62. Ne4 {[%emt 0:00:03]} Kd4 {[%emt 0:00:00]} 63. Kg3 {[%emt 0:00:06]} Rd5 {[%emt 0:00:03]} 64. Nf6 {[%emt 0:00:05]} Ra5 {[%emt 0:00:01]} 65. Ne4 {[%emt 0:00:05]} Rd5 {[%emt 0:00:01]} 66. Nd2 {[%emt 0:00:03]} Ke3 {[%emt 0:00:03]} 67. Ne4 {[%emt 0:00:06]} Ra5 {[%emt 0:00:02]} 68. Nd6 {[%emt 0:00:02] aiming for Nc4+.} Kd3 {[%emt 0:00:03] Inhibits Nc4.} 69. Kg2 {[%emt 0:00:24]} Ra2+ {[%emt 0:00:04]} 70. Kg3 {[%emt 0:00:01]} Ra1 {[%emt 0:00:01]} 71. Kf2 {[%emt 0:00:05]} Ra2+ {[%emt 0:00:01]} 72. Kg3 {[%emt 0:00:01]} Ra1 {[%emt 0:00:04]} 73. Ne4 {[%emt 0:00:01]} Ra5 {[%emt 0:00:01]} 74. Kf2 {[%emt 0:00:02]} Kd4 {[%emt 0:00:01] Weighted Error Value: White=0.13 (very precise) /Black=0.09 (flawless)} 1/2-1/2